bitfinex/quotes_BTCUSD_20240730
["timestamp","ask_amount","ask_price","bid_price","bid_amount"]
[1722380960315,0.0734851,66368.0,66367.0,0.29499]
[1722380960316,0.18619816,66368.0,66367.0,0.29499]
[1722380960511,0.18719816,66368.0,66367.0,0.30499]
[1722380960762,0.18719816,66368.0,66367.0,0.606344]
[1722380960965,0.16465496,66368.0,66367.0,0.30499]
[1722380961116,0.18719635,66368.0,66367.0,0.30499]
[1722380961321,0.18819635,66368.0,66367.0,0.30499]
[1722380961517,0.0754851,66368.0,66367.0,0.30499]
[1722380961936,0.18820075,66368.0,66367.0,0.30499]
[1722380962101,0.18790544,66368.0,66367.0,0.30499]
[1722380962475,0.07519129,66368.0,66367.0,0.30499]
[1722380963577,0.18791426,66368.0,66367.0,0.30499]
[1722380964231,0.07519129,66368.0,66367.0,0.30499]
[1722380964434,0.07519129,66368.0,66367.0,0.606344]
[1722380964636,0.07519129,66368.0,66367.0,0.907698]
[1722380964637,0.1879215,66368.0,66367.0,0.907698]
[1722380964837,0.07519129,66368.0,66367.0,0.907698]
[1722380965240,0.06263385,66368.0,66367.0,0.907698]
[1722380965441,0.10548463,66368.0,66367.0,0.907698]
[1722380965644,0.15216312,66368.0,66367.0,0.907698]
[1722380965847,0.07446098,66368.0,66367.0,0.897698]
[1722380966053,0.07546098,66368.0,66367.0,0.911698]
[1722380967299,0.16565451,66368.0,66367.0,0.911698]
[1722380968267,0.07546098,66368.0,66367.0,0.610344]
[1722380968471,0.0942801,66368.0,66367.0,0.610344]
[1722380968672,0.08361022,66368.0,66367.0,0.610344]
[1722380969027,0.14274453,66368.0,66367.0,0.610344]
[1722380969227,0.14274462,66368.0,66367.0,0.610344]
[1722380971205,0.25548766,66368.0,66367.0,0.610344]
[1722380971409,0.25548766,66368.0,66367.0,0.911698]
[1722380971629,0.23666854,66368.0,66367.0,0.911698]
[1722380972044,0.23691986,66368.0,66367.0,0.911698]
[1722380973357,0.12417682,66368.0,66367.0,0.911698]
[1722380973914,0.12417682,66368.0,66367.0,0.610344]
[1722380975503,0.12423511,66368.0,66367.0,0.610344]
[1722380977180,0.12423511,66368.0,66367.0,0.158313]
[1722380977343,0.16525439,66368.0,66367.0,0.30899]
[1722380977543,0.12423511,66368.0,66367.0,0.911698]
[1722380977868,0.11174372,66368.0,66367.0,0.610344]
[1722380978206,0.12424236,66368.0,66367.0,0.610344]
[1722380978664,0.06479835,66368.0,66367.0,0.610344]
[1722380978811,0.12411114,66368.0,66367.0,0.610344]
[1722380979024,0.06479835,66368.0,66367.0,0.610344]
[1722380979261,0.06479835,66368.0,66367.0,0.911698]
[1722380979262,0.11154265,66368.0,66367.0,0.911698]
[1722380981044,0.11154265,66368.0,66367.0,0.610344]
[1722380981187,0.11154265,66368.0,66367.0,0.911698]
[1722380981374,0.12412602,66368.0,66367.0,0.911698]
[1722380981584,0.11154265,66368.0,66367.0,0.911698]
[1722380981792,0.05229971,66368.0,66367.0,0.911698]
[1722380982245,0.11174619,66368.0,66367.0,0.610344]
[1722380982697,0.12432956,66368.0,66367.0,0.911698]
[1722380983095,0.12432956,66368.0,66367.0,0.30899]
[1722380983319,0.15030141,66368.0,66367.0,0.30899]
[1722380983546,0.28571256,66368.0,66367.0,0.158313]
[1722380983722,0.28570957,66368.0,66367.0,0.158313]
[1722380984107,0.28570957,66368.0,66367.0,0.30899]
[1722380985208,0.28587016,66368.0,66367.0,0.30899]
[1722380985602,0.28586865,66368.0,66367.0,0.30899]
[1722380985878,0.15044352,66368.0,66367.0,0.30899]
[1722380986011,0.285869,66368.0,66367.0,0.30899]
[1722380986409,0.25989715,66368.0,66367.0,0.30899]
[1722380987863,0.12447167,66368.0,66367.0,0.30899]
[1722380988301,0.25989715,66368.0,66367.0,0.30899]
[1722380988487,0.25599283,66368.0,66367.0,0.30899]
[1722380988694,0.25599283,66368.0,66367.0,0.158313]
[1722380988928,0.20114192,66368.0,66367.0,0.158313]
[1722380989230,0.11993971,66368.0,66367.0,0.158313]
[1722380991492,0.27061471,66368.0,66367.0,0.158313]
[1722380991841,0.27059715,66368.0,66367.0,0.158313]
[1722380992827,0.21576371,66368.0,66367.0,0.158313]
[1722380993036,0.27034476,66368.0,66367.0,0.158313]
[1722380995044,0.40572014,66368.0,66367.0,0.158313]
[1722380995250,0.21576371,66368.0,66367.0,0.158313]
[1722380995504,0.40557062,66368.0,66367.0,0.158313]
[1722380996310,0.270178,66368.0,66367.0,0.158313]
[1722380997192,0.119503,66368.0,66367.0,0.158313]
[1722380997605,0.119503,66368.0,66367.0,0.30899]
[1722380997987,0.119503,66368.0,66367.0,0.158313]
[1722380998428,0.06508871,66368.0,66367.0,0.158313]
[1722380998661,0.11990582,66368.0,66367.0,0.158313]
[1722381000902,0.11990582,66368.0,66367.0,0.30899]
[1722381001099,0.06508871,66368.0,66367.0,0.30899]
[1722381001355,0.11984354,66368.0,66367.0,0.30899]
[1722381001558,0.11984312,66368.0,66367.0,0.30899]
[1722381002811,0.0324538,66368.0,66367.0,0.30899]
[1722381003994,0.01261068,66368.0,66367.0,0.610344]
[1722381004414,0.13562802,66369.0,66368.0,0.150675]
[1722381004621,0.13562802,66369.0,66368.0,0.592125]
[1722381004918,0.13562802,66370.0,66369.0,0.1448]
[1722381006787,0.150668,66371.0,66369.0,0.1448]
[1722381006990,0.150668,66371.0,66369.0,0.1543]
[1722381006991,0.13567785,66370.0,66369.0,0.1543]
[1722381007224,0.150668,66371.0,66369.0,0.1543]
[1722381007634,0.150668,66371.0,66369.0,0.1533]
[1722381008285,0.13567888,66370.0,66369.0,0.1533]
[1722381008480,0.001,66371.0,66369.0,0.1613]
[1722381008706,0.151668,66371.0,66369.0,0.1483]
[1722381008865,0.151668,66371.0,66369.0,0.1603]
[1722381009269,0.151668,66371.0,66369.0,0.1483]
[1722381009473,0.151668,66371.0,66369.0,0.1613]
[1722381009676,0.151668,66371.0,66369.0,0.1483]
[1722381009898,0.15067,66370.0,66369.0,0.1483]
[1722381010103,0.15067,66370.0,66369.0,0.1603]
[1722381010324,0.15897416,66370.0,66369.0,0.1603]
[1722381010735,0.00830416,66370.0,66369.0,0.1523]
[1722381010936,0.20957986,66370.0,66369.0,0.1523]
[1722381011076,0.21057986,66370.0,66369.0,0.1603]
[1722381011676,0.21057986,66370.0,66369.0,0.1483]
[1722381012104,0.21057986,66370.0,66369.0,0.1613]
[1722381013341,0.51191986,66370.0,66369.0,0.1613]
[1722381013521,0.21057986,66370.0,66369.0,0.1613]
[1722381013787,0.15997416,66370.0,66369.0,0.1613]
[1722381013990,0.21062842,66370.0,66369.0,0.1613]
[1722381014149,0.46131416,66370.0,66369.0,0.1613]
[1722381014374,0.51196842,66370.0,66369.0,0.1613]
[1722381015346,0.59329816,66370.0,66369.0,0.1613]
[1722381017381,0.05995842,66370.0,66369.0,0.1613]
[1722381017565,0.21145842,66370.0,66369.0,0.1613]
[1722381020325,0.21173853,66370.0,66369.0,0.1613]
[1722381023182,0.06106853,66370.0,66369.0,0.1613]
[1722381023679,0.06091609,66370.0,66369.0,0.1613]
[1722381024085,0.21158609,66370.0,66369.0,0.1613]
[1722381026564,0.06091609,66370.0,66369.0,0.1613]
[1722381026971,0.0607432,66370.0,66369.0,0.1613]
[1722381027409,0.06074281,66370.0,66369.0,0.1613]
[1722381028034,0.21141281,66370.0,66369.0,0.1613]
[1722381030123,0.16080416,66370.0,66369.0,0.1613]
[1722381030319,0.21146078,66370.0,66369.0,0.1613]
[1722381032095,0.20922197,66370.0,66369.0,0.1613]
[1722381033644,0.20914225,66370.0,66369.0,0.1613]
[1722381036843,0.15856535,66370.0,66369.0,0.1613]
[1722381037161,0.20913951,66370.0,66369.0,0.1613]
[1722381037982,0.05846951,66370.0,66369.0,0.613317]
[1722381038177,0.1881655,66370.0,66369.0,0.914662]
[1722381038380,0.19406166,66370.0,66369.0,0.914662]
[1722381038935,0.00772511,66370.0,66369.0,0.914662]
[1722381039135,0.00183,66370.0,66369.0,1.216007]
[1722381039338,0.00183,66370.0,66369.0,1.203007]
[1722381039551,0.00183,66370.0,66369.0,1.217007]
[1722381040085,0.00083,66370.0,66369.0,1.209007]
[1722381040283,0.00183,66370.0,66369.0,1.223007]
[1722381041861,0.00183,66370.0,66369.0,1.524352]
[1722381042064,0.11491618,66370.0,66369.0,1.246007]
[1722381042269,0.09228348,66370.0,66369.0,1.246007]
[1722381042468,0.09210213,66370.0,66369.0,1.547352]
[1722381042717,0.09210213,66370.0,66369.0,1.55641183]
[1722381042718,0.00164865,66370.0,66369.0,1.55641183]
[1722381042926,0.00064865,66370.0,66369.0,1.52841183]
[1722381043126,0.06949041,66370.0,66369.0,1.54241183]
[1722381043332,0.0468663,66370.0,66369.0,1.55641183]
[1722381043753,0.00164865,66370.0,66369.0,1.55641183]
[1722381043966,0.04586599,66370.0,66369.0,1.54241183]
[1722381044163,0.04686599,66370.0,66369.0,1.55641183]
[1722381044372,0.00164865,66370.0,66369.0,1.55641183]
[1722381044961,0.00164865,66370.0,66369.0,1.54241183]
[1722381045365,0.00164865,66370.0,66369.0,1.55641183]
[1722381046149,0.00164865,66370.0,66369.0,1.25506683]
[1722381046960,0.04683223,66370.0,66369.0,1.25506683]
[1722381047157,0.00164865,66370.0,66369.0,1.25506683]
[1722381047766,0.00755609,66370.0,66369.0,1.25506683]
[1722381048216,0.00164865,66370.0,66369.0,1.25506683]
[1722381049546,0.00164865,66370.0,66369.0,1.25597983]
[1722381051122,0.00164865,66370.0,66369.0,1.55732483]
[1722381051318,0.00164865,66370.0,66369.0,1.25597983]
[1722381052285,0.00164865,66370.0,66369.0,1.55732483]
[1722381053259,0.00164865,66370.0,66369.0,1.25597983]
[1722381057086,0.04678219,66370.0,66369.0,1.34237983]
[1722381057507,0.00756999,66370.0,66369.0,1.34237983]
[1722381058064,0.00756999,66370.0,66369.0,1.23297983]
[1722381058274,0.0752703,66370.0,66369.0,1.23297983]
[1722381058490,0.06934896,66370.0,66369.0,1.23297983]
[1722381058698,0.00757723,66370.0,66369.0,1.23297983]
[1722381058906,0.09784431,66370.0,66369.0,1.23297983]
[1722381059090,0.00164865,66370.0,66369.0,1.23297983]
[1722381059285,0.04678175,66370.0,66369.0,1.23297983]
[1722381059711,0.00757723,66370.0,66369.0,1.23297983]
[1722381060050,0.04678189,66370.0,66369.0,1.23297983]
[1722381060435,0.00164865,66370.0,66369.0,1.23297983]
[1722381061207,0.04678189,66370.0,66369.0,1.23297983]
[1722381061407,0.00164865,66370.0,66369.0,1.23297983]
[1722381065889,0.00164865,66370.0,66369.0,1.53432483]
[1722381066093,0.00164865,66370.0,66369.0,1.55732483]
[1722381066625,0.00164865,66370.0,66369.0,1.71795787]
[1722381066800,0.00164865,66370.0,66369.0,1.83795787]
[1722381067205,0.00164865,66370.0,66369.0,1.96319533]
[1722381067500,0.00164865,66370.0,66369.0,1.96319534]
[1722381067967,0.00164865,66370.0,66369.0,1.94319534]
[1722381068203,0.00164865,66370.0,66369.0,1.81795787]
[1722381068598,0.00164865,66370.0,66369.0,1.65732483]
[1722381081235,0.04680502,66370.0,66369.0,1.65732483]
[1722381081389,0.00164865,66370.0,66369.0,1.25597983]
[1722381081812,0.00164865,66370.0,66369.0,0.03797283]
[1722381082021,0.08470374,66370.0,66369.0,0.028913]
[1722381082221,0.08470374,66370.0,66369.0,0.179585]
[1722381082222,0.25917498,66370.0,66369.0,0.179585]
[1722381082455,0.12365346,66370.0,66369.0,0.179585]
[1722381082662,0.25917575,66370.0,66369.0,0.179585]
[1722381083021,0.25917575,66370.0,66369.0,0.48093]
[1722381083222,0.12365346,66370.0,66369.0,0.179585]
[1722381084393,0.25911764,66370.0,66369.0,0.179585]
[1722381084627,0.25911764,66370.0,66369.0,0.48093]
[1722381084879,0.25975214,66370.0,66369.0,0.48093]
[1722381086263,0.12429901,66370.0,66369.0,0.48093]
[1722381087125,0.07324541,66370.0,66369.0,0.48093]
[1722381088216,0.06444865,66370.0,66369.0,0.48093]
[1722381088443,0.08159022,66370.0,66369.0,0.48093]
[1722381088797,0.13214485,66370.0,66369.0,0.48093]
[1722381090182,0.13191303,66370.0,66369.0,0.48093]
[1722381091383,0.13188111,66370.0,66369.0,0.48093]
[1722381093403,0.08159022,66370.0,66369.0,0.48093]
[1722381094590,0.08159022,66370.0,66369.0,0.782275]
[1722381094796,0.07279319,66370.0,66369.0,0.782275]
[1722381096377,0.08159206,66370.0,66369.0,0.782275]
[1722381097879,0.01879206,66370.0,66369.0,0.782275]
[1722381098282,0.00999319,66370.0,66369.0,0.782275]
[1722381098490,0.00164865,66370.0,66369.0,0.861975]
[1722381098733,0.00164865,66370.0,66369.0,0.928475]
[1722381098935,0.00164865,66370.0,66369.0,1.22982]
[1722381099151,0.11432399,66370.0,66369.0,1.22982]
[1722381099355,0.00164865,66370.0,66369.0,1.22982]
[1722381099554,0.01045284,66370.0,66369.0,1.22982]
[1722381099681,0.00164865,66370.0,66369.0,1.22982]
[1722381101409,0.11431266,66370.0,66369.0,1.22982]
[1722381101602,0.12311685,66370.0,66369.0,1.22982]
[1722381104696,0.12312012,66370.0,66369.0,1.22982]
[1722381108015,0.12313204,66370.0,66369.0,1.22982]
[1722381109355,0.17315471,66370.0,66369.0,1.22982]
[1722381109969,0.01045284,66370.0,66369.0,1.22982]
[1722381110376,0.17297703,66370.0,66369.0,1.22982]
[1722381110577,0.06029783,66370.0,66369.0,1.22982]
[1722381110911,0.17297703,66370.0,66369.0,1.22982]
[1722381111327,0.12759697,66370.0,66369.0,1.22982]
[1722381111530,0.17745953,66370.0,66369.0,1.22982]
[1722381111735,0.17746517,66370.0,66369.0,1.22982]
[1722381112266,0.17250259,66370.0,66369.0,1.22982]
[1722381112606,0.05981776,66370.0,66369.0,1.22982]
[1722381113373,0.00995519,66370.0,66369.0,1.22982]
[1722381113568,0.17264493,66370.0,66369.0,1.22982]
[1722381113768,0.16433839,66370.0,66369.0,1.22982]
[1722381113973,0.17264498,66370.0,66369.0,0.928475]
[1722381114189,0.1316925,66370.0,66369.0,0.028913]
[1722381114372,0.1399766,66370.0,66369.0,0.028913]
[1722381114573,0.27448521,66370.0,66369.0,0.028913]
[1722381115437,0.25722071,66370.0,66369.0,0.028913]
[1722381115692,0.25622071,66370.0,66369.0,0.000913]
[1722381115888,0.25622071,66370.0,66369.0,0.014913]
[1722381116088,0.25622071,66370.0,66369.0,0.028913]
[1722381116511,0.68358764,66370.0,66369.0,0.028913]
[1722381116687,0.68358764,66370.0,66369.0,0.014913]
[1722381116888,0.68358764,66370.0,66369.0,0.028913]
[1722381116889,0.77758127,66370.0,66369.0,0.028913]
[1722381117089,1.07892127,66370.0,66369.0,0.028913]
[1722381117628,1.07892127,66370.0,66369.0,0.000913]
[1722381117629,1.07903469,66370.0,66369.0,0.000913]
[1722381117797,1.11354321,66370.0,66369.0,0.014913]
[1722381118001,1.0790279,66370.0,66369.0,0.014913]
[1722381118208,1.0790279,66370.0,66369.0,0.000913]
[1722381118400,1.0790279,66370.0,66369.0,0.009913]
[1722381118603,0.36573403,66370.0,66369.0,0.009913]
[1722381118954,0.73540862,66370.0,66369.0,0.009913]
[1722381119304,0.73540862,66370.0,66369.0,0.023913]
[1722381119507,0.58325091,66370.0,66369.0,0.023913]
[1722381119703,0.72520862,66370.0,66369.0,0.009913]
[1722381119907,0.57305091,66370.0,66369.0,0.009913]
[1722381120117,0.27171091,66370.0,66369.0,0.016913]
[1722381120490,0.57305091,66370.0,66369.0,0.016913]
[1722381120850,0.57378872,66370.0,66369.0,0.016913]
[1722381121502,0.72596463,66370.0,66369.0,0.016913]
[1722381122255,0.57378872,66370.0,66369.0,0.016913]
[1722381122703,0.72596463,66370.0,66369.0,0.016913]
[1722381123217,0.72601277,66370.0,66369.0,0.016913]
[1722381123700,0.67589188,66370.0,66369.0,0.016913]
[1722381123955,0.72596942,66370.0,66369.0,0.016913]
[1722381124479,0.27395942,66370.0,66369.0,0.016913]
[1722381124720,0.27248029,66370.0,66369.0,0.016913]
[1722381125230,0.42462942,66370.0,66369.0,0.016913]
[1722381125477,0.27246323,66370.0,66369.0,0.016913]
[1722381125968,0.05899323,66370.0,66369.0,0.230285]
[1722381126206,0.05899323,66370.0,66369.0,0.53163]
[1722381126444,0.00893275,66370.0,66369.0,0.53163]
[1722381126962,0.00064865,66370.0,66369.0,0.53163]
[1722381127216,0.05891951,66370.0,66369.0,0.53163]
[1722381127473,0.05061708,66370.0,66369.0,0.53163]
[1722381127702,0.05891951,66370.0,66369.0,0.53163]
[1722381129142,0.05891951,66370.0,66369.0,0.46893]
[1722381129864,0.05883638,66370.0,66369.0,0.46893]
[1722381132043,0.064219,66370.0,66369.0,0.46893]
[1722381132308,0.064219,66370.0,66369.0,0.016913]
[1722381132309,0.93537599,66370.0,66369.0,0.016913]
[1722381133028,0.88549069,66370.0,66369.0,0.016913]
[1722381133293,0.93559146,66370.0,66369.0,0.016913]
[1722381133810,1.23693146,66370.0,66369.0,0.016913]
[1722381134061,1.32136702,66370.0,66369.0,0.016913]
[1722381134835,1.32117744,66370.0,66369.0,0.016913]
[1722381135790,1.27618911,66370.0,66369.0,0.016913]
[1722381136016,1.27618911,66370.0,66369.0,0.009913]
[1722381136248,1.27629331,66370.0,66369.0,0.000913]
[1722381136491,1.27629331,66370.0,66369.0,0.004913]
[1722381136742,1.14184236,66370.0,66369.0,0.010913]
[1722381136984,1.27631741,66370.0,66369.0,0.010913]
[1722381138172,1.36842098,66370.0,66369.0,0.010913]
[1722381139420,1.23394593,66370.0,66369.0,0.010913]
[1722381139668,1.36845119,66370.0,66369.0,0.010913]
[1722381142772,1.36867367,66370.0,66369.0,0.010913]
[1722381149246,1.23394593,66370.0,66369.0,0.010913]
[1722381149452,1.3682829,66370.0,66369.0,0.010913]
[1722381149889,1.3683329,66370.0,66369.0,0.010913]
[1722381150104,1.3783329,66370.0,66369.0,0.010913]
[1722381150583,1.6696729,66370.0,66369.0,0.010913]
[1722381150796,1.6796729,66370.0,66369.0,0.010913]
[1722381151335,1.6996729,66370.0,66369.0,0.010913]
[1722381151540,1.7996729,66370.0,66369.0,0.010913]
[1722381151741,2.02123834,66370.0,66369.0,0.010913]
[1722381151946,1.7996729,66370.0,66369.0,0.010913]
[1722381152154,2.2600129,66370.0,66369.0,0.006913]
[1722381152356,2.2650129,66370.0,66369.0,0.001913]
[1722381152577,2.2655448,66370.0,66369.0,0.002913]
[1722381153248,2.32389277,66370.0,66369.0,0.002913]
[1722381154626,2.34689277,66370.0,66369.0,0.002913]
[1722381155453,2.43329277,66370.0,66369.0,0.001913]
[1722381155675,2.2933739,66370.0,66369.0,0.001913]
[1722381155891,2.42874966,66370.0,66369.0,0.000913]
[1722381156258,2.42874966,66370.0,66369.0,0.001913]
[1722381157032,2.44174966,66370.0,66369.0,0.002913]
[1722381157821,2.20489812,66370.0,66369.0,0.002913]
[1722381158065,2.29129812,66370.0,66369.0,0.002913]
[1722381160131,1.90355812,66370.0,66369.0,0.002913]
[1722381160355,1.98995812,66370.0,66369.0,0.002913]
[1722381161232,2.29129812,66370.0,66369.0,0.002913]
[1722381161444,2.44199244,66370.0,66369.0,0.002913]
[1722381161906,2.14065244,66370.0,66369.0,0.002913]
[1722381162613,2.44199244,66370.0,66369.0,0.002913]
[1722381162856,2.14088279,66370.0,66369.0,0.002913]
[1722381163088,2.44222279,66370.0,66369.0,0.002913]
[1722381163310,2.14088279,66370.0,66369.0,0.002913]
[1722381165196,2.14692579,66370.0,66369.0,0.002913]
[1722381165624,2.1453181,66370.0,66369.0,0.002913]
[1722381167737,3.42493684,66370.0,66369.0,0.002913]
[1722381168583,3.72627684,66370.0,66369.0,0.002913]
[1722381170457,1.918075,66368.0,66367.0,0.000913]
[1722381170677,2.56807342,66368.0,66367.0,0.000913]
[1722381170890,2.58148514,66368.0,66367.0,0.000913]
[1722381171097,2.88283514,66368.0,66367.0,0.000913]
[1722381171560,0.727458,66363.0,66362.0,0.000913]
[1722381171778,2.23994442,66363.0,66362.0,0.000913]
[1722381171983,2.30872918,66363.0,66362.0,0.000913]
[1722381172219,2.33051753,66363.0,66362.0,0.000913]
[1722381172427,2.57354156,66363.0,66362.0,0.000913]
[1722381172636,2.78084487,66363.0,66362.0,0.000913]
[1722381173029,2.7304969,66363.0,66362.0,0.001913]
[1722381173236,2.78884487,66363.0,66362.0,0.001913]
[1722381173463,2.7304969,66363.0,66362.0,0.001913]
[1722381173671,4.01037414,66363.0,66362.0,0.001913]
[1722381174080,4.23176209,66363.0,66362.0,0.001913]
[1722381174731,4.24576209,66363.0,66362.0,0.001913]
[1722381175498,3.89132887,66363.0,66362.0,0.001913]
[1722381175715,4.24574832,66363.0,66362.0,0.001913]
[1722381175911,4.2456054,66363.0,66362.0,0.001913]
[1722381176435,4.02419036,66363.0,66362.0,0.001913]
[1722381176774,1.987595,66361.0,66360.0,0.009328]
[1722381176986,2.47545649,66361.0,66360.0,0.009328]
[1722381177187,2.4840976,66361.0,66360.0,0.009328]
[1722381177984,2.4980976,66361.0,66360.0,0.009328]
[1722381179080,2.4980976,66361.0,66360.0,1e-08]
[1722381179296,2.66279192,66361.0,66360.0,1e-08]
[1722381179499,1.846645,66359.0,66349.0,0.0638]
[1722381179701,2.26190649,66359.0,66349.0,0.0638]
[1722381180140,2.27053042,66359.0,66349.0,0.0638]
[1722381180345,2.57192042,66359.0,66348.0,0.082313]
[1722381180565,2.57192042,66359.0,66348.0,0.000913]
[1722381180566,2.296021,66352.0,66348.0,0.000913]
[1722381180776,3.80850122,66352.0,66348.0,0.000913]
[1722381180980,3.81708157,66352.0,66348.0,0.000913]
[1722381181190,3.75428157,66352.0,66348.0,0.000913]
[1722381181401,3.90155652,66352.0,66348.0,0.000913]
[1722381182642,3.91155652,66352.0,66348.0,0.000913]
[1722381183054,3.37477918,66352.0,66351.0,0.092628]
[1722381183255,3.47317918,66352.0,66351.0,0.092628]
[1722381184289,3.47369374,66352.0,66351.0,0.092628]
[1722381186104,3.47369374,66352.0,66351.0,0.009328]
[1722381186407,3.633332,66352.0,66351.0,0.009328]
[1722381187531,3.50163634,66352.0,66351.0,0.009328]
[1722381187683,3.63194295,66352.0,66351.0,0.009328]
[1722381187882,3.52528767,66352.0,66351.0,0.009328]
[1722381188083,3.5691371,66352.0,66351.0,0.009328]
[1722381188300,3.6555371,66352.0,66351.0,0.009328]
[1722381189499,3.6555371,66352.0,66351.0,0.075428]
[1722381189697,3.65587066,66352.0,66351.0,0.156328]
[1722381190284,3.56947066,66352.0,66351.0,0.156328]
[1722381190541,3.78393963,66352.0,66351.0,0.156328]
[1722381190810,3.65335664,66352.0,66351.0,0.156328]
[1722381190999,4.00685333,66352.0,66351.0,0.156328]
[1722381191346,4.00901227,66352.0,66351.0,0.156328]
[1722381192333,3.8809433,66352.0,66351.0,0.156328]
[1722381193237,4.00875282,66352.0,66351.0,0.156328]
[1722381194055,4.00804223,66352.0,66351.0,0.156328]
[1722381194257,3.78653348,66352.0,66351.0,0.156328]
[1722381194394,3.78653348,66352.0,66351.0,0.009328]
[1722381195065,3.7819288,66352.0,66351.0,0.009328]
[1722381195645,3.7699288,66352.0,66351.0,0.009328]
[1722381195881,3.7739288,66352.0,66351.0,0.009328]
[1722381196077,3.7869288,66352.0,66351.0,0.009328]
[1722381197313,3.78542557,66352.0,66351.0,0.009328]
[1722381200108,4.08684757,66352.0,66351.0,0.009328]
[1722381200311,3.78542557,66352.0,66351.0,0.009328]
[1722381200559,3.65565145,66352.0,66351.0,0.009328]
[1722381200761,4.08707041,66352.0,66351.0,0.009328]
[1722381201181,3.78453404,66352.0,66351.0,0.009328]
[1722381201377,4.08595604,66352.0,66351.0,0.009328]
[1722381202351,3.78453404,66352.0,66351.0,0.009328]
[1722381202567,3.77839943,66352.0,66351.0,0.073428]
[1722381202770,3.78496368,66352.0,66351.0,0.073428]
[1722381202977,3.78496368,66352.0,66351.0,0.151128]
[1722381203181,3.48496368,66352.0,66351.0,0.151128]
[1722381203416,3.78496368,66352.0,66351.0,0.151128]
[1722381203809,3.7854905,66352.0,66351.0,0.151128]
[1722381205718,3.4854905,66352.0,66351.0,0.151128]
[1722381205962,3.2400905,66352.0,66351.0,0.151128]
[1722381206172,3.54816537,66352.0,66351.0,0.151128]
[1722381206583,3.42035585,66352.0,66351.0,0.151128]
[1722381207119,3.42038291,66352.0,66351.0,0.151128]
[1722381207297,3.42039022,66352.0,66351.0,0.151128]
[1722381207507,3.19868098,66352.0,66351.0,0.151128]
[1722381210556,3.19972631,66352.0,66351.0,0.151128]
[1722381213698,3.20021806,66352.0,66351.0,0.151128]
[1722381214092,3.20018348,66352.0,66351.0,0.151128]
[1722381214575,3.27553064,66352.0,66351.0,0.151128]
[1722381214729,3.25187931,66352.0,66351.0,0.151128]
[1722381215140,3.27553199,66352.0,66351.0,0.151128]
[1722381215509,3.20018483,66352.0,66351.0,0.151128]
[1722381217048,3.19995995,66352.0,66351.0,0.151128]
[1722381220217,3.11675487,66352.0,66351.0,0.151128]
[1722381220417,3.19885101,66352.0,66351.0,0.151128]
[1722381220747,3.4433228,66352.0,66351.0,0.151128]
[1722381221082,3.19885101,66352.0,66351.0,0.151128]
[1722381223498,3.27155128,66352.0,66351.0,0.073428]
[1722381223704,3.35795128,66352.0,66351.0,0.009328]
[1722381224124,3.64937328,66352.0,66351.0,0.009328]
[1722381224583,3.65937328,66352.0,66351.0,0.009328]
[1722381224998,3.64637328,66352.0,66351.0,0.009328]
[1722381225693,3.7881828,66352.0,66351.0,0.009328]
[1722381226677,3.65850444,66352.0,66351.0,0.009328]
[1722381226894,3.78883653,66352.0,66351.0,0.009328]
[1722381227321,3.78874276,66352.0,66351.0,0.009328]
[1722381228275,3.77474276,66352.0,66351.0,0.009328]
[1722381229796,0.339722,66347.0,66346.0,0.000913]
[1722381230013,1.25865032,66347.0,66346.0,0.000913]
[1722381230230,0.641173,66346.0,66342.0,0.009328]
[1722381230443,0.727594,66343.0,66342.0,0.009328]
[1722381230654,1.583874,66343.0,66342.0,0.009328]
[1722381230860,1.89188754,66343.0,66342.0,0.009328]
[1722381231368,1.845646,66340.0,66338.0,0.009328]
[1722381231544,2.20574032,66340.0,66338.0,0.009328]
[1722381231716,2.6441074,66340.0,66338.0,0.009328]
[1722381232935,3.92372613,66340.0,66338.0,0.009328]
[1722381233179,3.93772613,66340.0,66338.0,0.009328]
[1722381233353,3.93771028,66340.0,66338.0,0.009328]
[1722381233990,3.95170744,66340.0,66338.0,0.009328]
[1722381234189,3.94170744,66340.0,66338.0,0.009328]
[1722381234391,4.25318444,66340.0,66338.0,0.009328]
[1722381236684,4.12284913,66340.0,66338.0,0.009328]
[1722381236825,4.25364639,66340.0,66338.0,0.009328]
[1722381239471,4.24364639,66340.0,66338.0,0.009328]
[1722381239657,4.25364639,66340.0,66338.0,0.009328]
[1722381240054,4.25356789,66340.0,66338.0,0.009328]
[1722381240473,4.20549953,66340.0,66338.0,0.073028]
[1722381240818,4.25357047,66340.0,66338.0,0.073028]
[1722381241027,3.85569347,66340.0,66339.0,0.091828]
[1722381241237,3.95209347,66340.0,66339.0,0.091828]
[1722381241458,4.07178353,66340.0,66339.0,0.091828]
[1722381241663,4.07178353,66340.0,66339.0,0.153528]
[1722381241920,3.95217434,66340.0,66339.0,0.153528]
[1722381242140,3.34100302,66340.0,66339.0,0.153528]
[1722381242344,3.49957189,66340.0,66339.0,0.153528]
[1722381242548,3.19957189,66340.0,66339.0,0.153528]
[1722381242989,3.49957189,66340.0,66339.0,0.153528]
[1722381243374,3.19957189,66340.0,66339.0,0.153528]
[1722381243581,3.35026621,66340.0,66339.0,0.153528]
[1722381243765,3.65026621,66340.0,66339.0,0.153528]
[1722381244924,3.71071721,66340.0,66339.0,0.153528]
[1722381245468,3.7110209,66340.0,66339.0,0.153528]
[1722381247814,4.0124979,66340.0,66339.0,0.071028]
[1722381247987,4.13204033,66340.0,66339.0,0.071028]
[1722381253914,4.13204033,66340.0,66339.0,0.151728]
[1722381255455,4.00136556,66340.0,66339.0,0.151728]
[1722381255654,3.82950886,66340.0,66339.0,0.151728]
[1722381255993,3.82950881,66340.0,66339.0,0.151728]
[1722381257504,3.70996638,66340.0,66339.0,0.151728]
[1722381257710,3.71002202,66340.0,66339.0,0.151728]
[1722381258617,3.58034613,66340.0,66339.0,0.151728]
[1722381258819,3.71002964,66340.0,66339.0,0.151728]
[1722381262334,3.70991956,66340.0,66339.0,0.151728]
[1722381265358,3.7098238,66340.0,66339.0,0.151728]
[1722381268147,3.5508238,66340.0,66339.0,0.151728]
[1722381268790,3.55051039,66340.0,66339.0,0.151728]
[1722381269393,3.5505104,66340.0,66339.0,0.151728]
[1722381271217,3.22761365,66340.0,66339.0,0.151728]
[1722381271426,3.52761365,66340.0,66339.0,0.151728]
[1722381272233,3.52760389,66340.0,66339.0,0.151728]